Cogmind - Beta 13 @@@ ROGUE MODE // 2024.07.28 @ 17:47:10 Player: DAFFA Result: Self-destructed Performance ------------- Evolutions (1) 500 Regions Visited (3) 600 Robots Destroyed (33) 165 Value Destroyed (740) 740 Prototype IDs (0) 0 Alien Tech Used (0) 0 Bonus (108) 108 TOTAL SCORE: 2113 Bonus ------- Follower Combat Kills 125 Friendly Fire -17 Cogmind --------- Core Integrity 227/400 Matter 177/300 Energy 140/140 System Corruption 1% Temperature Cool (0) Movement Rolling (130) Ox2 Location -9/Materials Parts ------- > --- POWER (2) -------- Light Deuterium Engine > --- PROPULSION (2) --- Compact Wheel Compact Wheel > --- UTILITY (3) ------ Huge Storage Unit Signal Interpreter Targeting Computer > --- WEAPON (2) ------- Light Assault Rifle Heavy Assault Rifle > --- INVENTORY (25) --- Ion Engine Light Deuterium Engine Light Deuterium Engine Compact Wheel Armored Wheel Armored Wheel Armored Wheel Hover Unit Hover Unit Heat Sink Small Storage Unit Small Laser Small Laser Beam Cannon Mining Laser Mining Claw Proton Bomb Trap Proton Bomb Trap Proton Bomb Trap Peak State ------------ > --- POWER ------------ Light Deuterium Engine Light Deuterium Engine > --- PROPULSION ------- Compact Wheel Compact Wheel > --- UTILITY ---------- Huge Storage Unit Signal Interpreter Targeting Computer > --- WEAPON ----------- Light Assault Rifle Heavy Assault Rifle > --- INVENTORY -------- Ion Engine Light Deuterium Engine Light Deuterium Engine Compact Wheel Armored Wheel Armored Wheel Armored Wheel Hover Unit Hover Unit Heat Sink Small Storage Unit Small Laser Small Laser Beam Cannon Mining Laser Mining Claw Proton Bomb Trap Proton Bomb Trap Proton Bomb Trap [Rating: 16] Favorites ----------- Power Ion Engine Engine Ion Engine Propulsion Light Treads Treads Light Treads Wheel Armored Wheel Hover Unit Hover Unit Utility Huge Storage Unit Device Heat Sink Storage Huge Storage Unit Processor Targeting Computer Weapon Beam Cannon Energy Gun Small Laser Energy Cannon Beam Cannon Ballistic Gun Heavy Assault Rifle Launcher Rocket Launcher Build | -11 -10 -10 -9 ------- Run | Yrd Mat Min Mat Slots Evolved 2 | . . . 2 Power 1 | . . . 1 Propulsion . | . . . . Utility 1 | . . . 1 Weapon . | . . . . Parts Attached 39 | 8 9 . 22 Power 10 | 3 . . 7 Engine 10 | 3 . . 7 Core . | . . . . Reactor . | . . . . Propulsion 13 | 2 4 . 7 Treads 4 | 2 2 . . Leg . | . . . . Wheel 6 | . . . 6 Hover 3 | . 2 . 1 Flight . | . . . . Utility 8 | 1 3 . 4 Device 3 | . 2 . 1 Storage 3 | 1 1 . 1 Processor 2 | . . . 2 Hackware . | . . . . Protection . | . . . . Artifact . | . . . . Weapon 8 | 2 2 . 4 Energy Gun 3 | 2 . . 1 Energy Cannon 2 | . 2 . . Ballistic Gun 2 | . . . 2 Ballistic Cannon . | . . . . Launcher 1 | . . . 1 Special Weapon . | . . . . Impact Weapon . | . . . . Slashing Weapon . | . . . . Piercing Weapon . | . . . . Special Melee Weapon . | . . . . Unidentified Prototypes . | . . . . Parts Lost 9 | . . . 9 Power 5 | . . . 5 Propulsion 1 | . . . 1 Utility 1 | . . . 1 Weapon 2 | . . . 2 Highest Loss Streak 3 | . . . 3 To Critical Strikes . | . . . . Average Slot Usage (%) 98 | . 99 100 96 Engine 15 | . 14 14 20 Treads 23 | . 28 28 6 Wheel 3 | . . . 14 Device 12 | . 13 14 9 Storage 13 | . 14 14 11 Processor 2 | . . . 12 Energy Gun 1 | . 2 . 2 Energy Cannon 22 | . 25 28 7 Ballistic Gun 1 | . . . 7 Naked Turns . | . . . . Heaviest Build 97 | 12 92 92 97 Greatest Support 40 | 40 40 40 40 Greatest Overweight (x) 8 | . 2 2 8 Average Overweight (x) 2 | . 1 2 3 Largest Inventory Capacity 25 | 8 25 25 25 Average Capacity 23 | 6 22 25 25 Most Carried 20 | 4 10 15 20 Average Carried 11 | 1 6 12 15 Final Capacity 25 | 8 25 25 25 Final Carried 19 | 2 10 15 19 Class Distribution -------------------- 97% | Mutant Dominant Class ---------------- Mutant | -10/Materials Mutant | -10/Mines Mutant | -9/Materials Resources | -11 -10 -10 -9 ----------- Run | Yrd Mat Min Mat Matter Collected 635 | 250 101 68 216 Remotely . | . . . . Salvage Created 1104 | . 345 180 579 Parts 62 | . 11 13 38 Haulers Intercepted . | . . . . Recyclers Shooed . | . . . . Parts Field Recycled . | . . . . Retrieved Matter . | . . . . Parts Self-Destructed . | . . . . Prevented . | . . . . Kills | -11 -10 -10 -9 ------- Run | Yrd Mat Min Mat Combat Hostiles Destroyed 22 | . 4 6 12 Guns 9 | . 1 . 8 Cannons 11 | . 2 6 3 AOE 1 | . . . 1 Classes Destroyed 8 | . 4 1 3 Worker 4 | . 4 . . Recycler 3 | . 1 1 1 Operator 2 | . . . 2 Watcher 2 | . 1 . 1 Swarmer 9 | . . 6 3 Grunt 9 | . 4 . 5 Duelist 1 | . . . 1 Sentry 3 | . . . 3 Best Kill Streak 5 | . 3 3 5 Combat Bots Only 5 | . 1 3 5 Max Kills in Single Turn 2 | . 1 1 2 Gunslinging . | . . . . Exploded 1 | . . . 1 Melee . | . . . . Uniques/NPCs Destroyed . | . . . . Combat | -11 -10 -10 -9 -------- Run | Yrd Mat Min Mat Hostile Shots Fired 140 | . 23 24 93 Missed 30 | . 6 2 22 Damage Taken 1394 | . 241 178 975 Core 259 | . 35 51 173 Absorbed by Shields . | . . . . Core Remaining (%) 82 | 100 . 65 . Volleys Fired 113 | . 43 16 54 Largest 2 | . 2 2 2 Hottest 120 | . 120 120 105 Shots Fired 192 | . 86 25 81 Gun 71 | . 11 . 60 Cannon 118 | . 75 25 18 Launcher 3 | . . . 3 Special . | . . . . Kinetic 45 | . . . 45 Thermal 129 | . 86 25 18 Explosive 3 | . . . 3 Electromagnetic 15 | . . . 15 Robot Hit Streak 7 | . 6 6 7 Robot Miss Streak 5 | . 5 2 3 Penetration Max . | . . . . Secondary Targets 2 | . . . 2 Max Gunslinging Chain 1 | . . . 1 Shots Hit Robots 104 | . 45 14 45 Core Hits 45 | . 12 8 25 Critical Kills . | . . . . Critical Parts Destroyed 1 | . . . 1 Critical Strikes 1 | . . . 1 Destroy 1 | . . . 1 Melee Attacks . | . . . . Impact . | . . . . Slashing . | . . . . Piercing . | . . . . Sneak Attacks . | . . . . Combat Hostiles . | . . . . Follow-up Attacks . | . . . . Damage Inflicted 1936 | . 775 268 893 Guns 621 | . 55 . 566 Cannons 1199 | . 720 268 211 Explosions 116 | . . . 116 Melee . | . . . . Ramming . | . . . . Kinetic 365 | . . . 365 Thermal 1278 | . 775 268 235 Explosive 92 | . . . 92 Electromagnetic 201 | . . . 201 Impact . | . . . . Slashing . | . . . . Piercing . | . . . . Highest Corruption 1 | . 1 1 1 Average Corruption 1 | . 1 1 1 Corruption Purged . | . . . . Corruption Blocked . | . . . . Effects 17 | . . 17 . Message Errors 5 | . . 5 . Matter Fused 6 | . . 6 . Energy Discharges 3 | . . 3 . Misfires 2 | . . 2 . Alerts 1 | . . 1 . Overload Shots . | . . . . Overflow Damage 26 | . 12 . 14 Projectiles 12 | . 12 . . Explosions 14 | . . . 14 Melee . | . . . . Knockbacks . | . . . . Impact . | . . . . Kinetic . | . . . . Secondary . | . . . . Self-Inflicted Damage 141 | . . . 141 Shots 4 | . . . 4 Rammed . | . . . . Targets Rammed . | . . . . Kicked . | . . . . Crushed . | . . . . Highest Temperature 282 | . 282 120 156 Average Temperature 62 | . 74 62 36 Received Heat Transfer 426 | . 141 . 285 Siege Activations . | . . . . Robots Corrupted . | . . . . Combat Hostiles . | . . . . Parts Fried . | . . . . Impact Corruptions . | . . . . Robots Melted 1 | . 1 . . Combat Hostiles 1 | . 1 . . Parts Melted 3 | . 3 . . Heat Transferred 2691 | . 1642 555 494 Parts Sabotaged . | . . . . Parts Stolen . | . . . . Parts Stripped . | . . . . Power Chain Reactions 2 | . . . 2 Alert | -11 -10 -10 -9 ------- Run | Yrd Mat Min Mat Peak Influence 206 | . 95 183 206 Initial 8 | . . 8 . Average 46 | . 34 43 74 Maximum Alert Level 1 | . . . 1 Low Security (%) 98 | 100 100 100 93 Level 1 1 | . . . 6 Level 2 . | . . . . Level 3 . | . . . . Level 4 . | . . . . Level 5 . | . . . . High Security . | . . . . Max Security . | . . . . Squads Dispatched 4 | . 1 1 2 Investigation 3 | . 1 1 1 Extermination . | . . . . Reinforcement 1 | . . . 1 Assault . | . . . . Garrison . | . . . . Intercept . | . . . . Searches Triggered . | . . . . Construction Impeded . | . . . . Haulers Reinforced . | . . . . Active Scanning Responses . | . . . . Cargo Convoy Interrupts . | . . . . Stealth | -11 -10 -10 -9 --------- Run | Yrd Mat Min Mat Distress Signals 2 | . . . 2 Communications Jammed . | . . . . Distress Signals . | . . . . Times Spotted 52 | . 10 12 30 Peak Tracking Total 5 | . 2 3 5 Tactical Retreats 5 | . 2 2 1 Traps | -11 -10 -10 -9 ------- Run | Yrd Mat Min Mat Traps Triggered . | . . . . Indirectly . | . . . . Trap Hack Attempts . | . . . . Triggered . | . . . . Disarmed . | . . . . Reprogrammed . | . . . . Reused . | . . . . Traps Extracted . | . . . . Installed . | . . . . Triggered . | . . . . Most Traps Carried 3 | . . 3 3 Machines | -11 -10 -10 -9 ---------- Run | Yrd Mat Min Mat Machines Disabled 5 | . . 1 4 Max in Single Turn 1 | . . 1 1 Machines Repaired . | . . . . Machines Dismantled . | . . . . Machines Sabotaged . | . . . . Overloaded Fab Kills . | . . . . Hacking | -11 -10 -10 -9 --------- Run | Yrd Mat Min Mat Machines Accessed 9 | . 5 1 3 Terminals 9 | . 5 1 3 Fabricators . | . . . . Repair Stations . | . . . . Recycling Units . | . . . . Scanalyzers . | . . . . Garrison Access . | . . . . Total Hacks 22 | . 8 3 11 Successful 5 | . 2 1 2 Failed 17 | . 6 2 9 Catastrophic 3 | . . . 3 Database Lockouts . | . . . . Manual 18 | . 7 3 8 Terminals 22 | . 8 3 11 Fabricators . | . . . . Repair Stations . | . . . . Recycling Units . | . . . . Scanalyzers . | . . . . Garrison Access . | . . . . Terminal Hacks 5 | . 2 1 2 Robot Analysis 1 | . . 1 . Branch Access Points 1 | . 1 . . Alert Level 1 | . . . 1 Dispatch Records 1 | . . . 1 Zone Layout 1 | . 1 . . Fabricator Hacks . | . . . . Repair Station Hacks . | . . . . Recycling Unit Hacks . | . . . . Scanalyzer . | . . . . Garrison Access Hacks . | . . . . Unauthorized Hacks . | . . . . Terminals . | . . . . Fabricators . | . . . . Repair Stations . | . . . . Recycling Units . | . . . . Scanalyzers . | . . . . Garrison Access . | . . . . Data Cores Recovered . | . . . . Used . | . . . . Hacking Detections 8 | . 4 1 3 Full Trace Events 3 | . 1 1 1 Feedback Events 1 | . 1 . . Corruption 1 | . 1 . . Feedback Blocked . | . . . . Robot Schematics Acquired . | . . . . Robots Built . | . . . . Authchips . | . . . . Time . | . . . . Total Robot Build Rating . | . . . . Part Schematics Acquired . | . . . . Parts Built . | . . . . Authchips . | . . . . Time . | . . . . Total Part Build Rating . | . . . . Parts Repaired . | . . . . Time . | . . . . Parts Recycled . | . . . . Recycled Matter . | . . . . Retrieved Matter . | . . . . Retrieved Components . | . . . . Parts Scanalyzed . | . . . . Part Schematics Acquired . | . . . . Parts Damaged . | . . . . Bothacking | -11 -10 -10 -9 ------------ Run | Yrd Mat Min Mat Used RIF Installer . | . . . . Robots Hacked . | . . . . Non-combat . | . . . . Combat . | . . . . Robot Hacks Applied . | . . . . Relay Couplers Released . | . . . . Fabnet Peak Effective % . | . . . . Robots Rewired . | . . . . Allies Hacked . | . . . . Hacks Repelled . | . . . . Allies | -11 -10 -10 -9 -------- Run | Yrd Mat Min Mat Total Allies 3 | . . 3 . Largest Group 3 | . . 3 2 Highest-Rated Group 40 | . . 40 24 Highest-Rated Ally 16 | . . 16 16 Total Orders 3 | . . 3 . AID 3 | . . 3 . Ally Attacks 55 | . . 22 33 Total Damage 525 | . . 255 270 Kills 12 | . . 8 4 Allies Corrupted . | . . . . Allies Melted . | . . . . Intel | -11 -10 -10 -9 ------- Run | Yrd Mat Min Mat Robot Analysis Total 1 | . . 1 . Derelict Logs Recovered 2 | . . 2 . Drone Launches . | . . . . Drone Recoveries . | . . . . Exploration | -11 -10 -10 -9 ------------- Run | Yrd Mat Min Mat Turns Passed 5776 | 169 1585 2813 1209 Spaces Moved 1961 | 87 465 837 572 Core 1 | 1 . . . Treads 1491 | 86 465 837 103 Legs . | . . . . Wheels 469 | . . . 469 Hover . | . . . . Flight . | . . . . Fastest Speed 50 | 50 160 320 130 Average Speed 260 | 158 279 320 174 Slowest Speed 480 | 160 320 320 480 Overloaded Moves . | . . . . Propulsion Burnouts . | . . . . Robots Hopped . | . . . . Cave-ins Triggered . | . . . . Exploration Rate (%) 49 | 6 47 99 44 Regions Visited 3 Branch Regions 1 Pre-discovered Areas . | . . . . Known Exits Taken 1 | . 1 . . Unknown Exits Taken 2 | 1 . 1 . Scrap Searched 1 | . . 1 . Spaces Dug . | . . . . Terrain Destroyed 38 | . . . 38 Melee . | . . . . Projectile . | . . . . AOE 38 | . . . 38 Terrain Rammed . | . . . . Walls Destroyed . | . . . . Machines Disabled . | . . . . Actions | -11 -10 -10 -9 --------- Run | Yrd Mat Min Mat Total 2436 | 117 665 950 704 Wait 276 | 15 139 93 29 Move 1958 | 86 464 836 572 Hop . | . . . . Pick Up 40 | 8 9 5 18 Fast Attach . | . . . . Attach 24 | 6 2 . 16 Detach 6 | . 1 . 5 Swap 15 | 2 7 . 6 Drop 4 | . . . 4 Fire 113 | . 43 16 54 Melee . | . . . . Ram . | . . . . Kick . | . . . . Crush . | . . . . Escape Stasis . | . . . . Rewire . | . . . . Trap . | . . . . Miscellaneous . | . . . . Route ------- -11/Scrapyard -10/Materials (discovered 3 exits: *Mat / *Min x2) -10/Mines (discovered 2 exits: *Mat x2) -9/Materials (discovered 5 exits: *Mat x3 / *Min x2) History --------- Turn | Location | Event 95 | -11/Scrapyard | Discovered new exit (range 15) 170 | -11/Scrapyard | Entered Materials 311 | -10/Materials | Build established: Mutant 531 | -10/Materials | Discovered new exit (range 15) 823 | -10/Materials | Discovered new exit (range 16) 826 | -10/Materials | Identified exit to Mines 1755 | -10/Materials | Entered Mines 1907 | -10/Mines | Learned Materials terminal intel 2158 | -10/Mines | Assisted by bots powering up and referring to "LRC-V3" 2640 | -10/Mines | Discovered new exit (range 4) 3040 | -10/Mines | Received a Rocket Launcher from a helpful Derelict 3041 | -10/Mines | Learned 4 Materials zone layouts 3172 | -10/Mines | Discovered new exit (range 15) 3469 | -10/Mines | Found a hidden stash of uninstalled traps 4568 | -10/Mines | Entered Materials 4568 | -9/Materials | Accompanied by 2 allies 4568 | -9/Materials | Evolved 2 slots: Power x1, Utility x1 4569 | -9/Materials | Identified exit to Materials 4569 | -9/Materials | Identified exit to Mines 4570 | -9/Materials | Loaded intel: 12 terminal locations 4967 | -9/Materials | Lost 3 parts (1p1n1w) 5527 | -9/Materials | Discovered exit to Materials (range 3) 5656 | -9/Materials | Discovered exit to Mines (range 16) 5661 | -9/Materials | Lost 3 parts (1p1u1w) 5777 | -9/Materials | Self-destructed Last Messages --------------- 05695_ Acquired Arm. Wheel. 05732_ Connecting with Terminal... >>Alert(Check) Current Alert Level: Low Security >>Enumerate(Squads) Retrieving dispatch records... Found 17 active squads: 6x Security 1x Surveillance 4x Patrol 6x Transport 05732_ ALERT: Suspicious activity at Terminal M002. Dispatching Investigation squad. 05746_ G-34 Mercenary destroyed. 05746_ Switching to secondary target: L-31 Rogue. 05761_ Lgt. Deuterium Engine destroyed. 05769_ L-31 Rogue destroyed. 05769_ Switching to secondary target: G-34 Mercenary. Map ----- +----------------------------------------------------+ | ??????# # ## # ## | | ??????# # ## # ## | | ??????# # """ ## # ## | | ??????# # """ ## # == ## | | ??????# # """ ## # == ## | | ??????# # ## # == #? | | ??????####+######+#### ###########? | | ??????# #? | | ??????# < #? | | ??????# #? | | ??????###### ########## """ ## | | ???????????# #????????# """"" # | | ???????????# #????????# """"" # | | ???????????# ########## """"" ?#? | | ???????????#* # # """ #? | | ???????#####%[ # + #? | | ????#### ##= # # #? | | ????# # # ######## #? | | ????# # + #???????????? | | ????#% + # #???????????? | | ????# # # #???????????? | | ????# # #???????????? | | ????# ] # # #???????????? | | ????######## ##########???????????? | | ????######## #????????????????????? | | ????# #@ #????????????????????? | | ????#"" # #????????????????????? | | ????#"T #%! #????????????????????? | | ????#"" #! #????????????????????? | | ????# + +????????????????????? | | ????# # #####????????????????? | | ????######## ]]#????????????????? | | ????# # ]]#????????????????? | | ????# # g #????????????????? | | ????# + g #????????????????? | | ????# # !!#????????????????? | | ????# # !!#????????????????? | | ????# # #####????????????????? | | ????######## +?????????????????? | | ???????????# ####?????????????????? | | ???????????# #????????????????????? | | ??????????## ##???????????????????? | | ??????????# #???????????????????? | | ?????????# #??????????????????? | | ?????????# #??????????????????? | | ?????????# > #??????????????????? | | ?????????# #??????????????????? | | ?????????#"" ""#??????????????????? | | ?????????##"!!!"##??????????????????? | | ??????????##"""##???????????????????? | +----------------------------------------------------+ Best States ------------- Heat Dissipation 38 Energy Generation 23 Energy Capacity 275 Matter Stores 300 Matter Capacity 300 Sight Range 16 Terrain Scan Density 10 ECM Strength 1 Evasion (%) 40 Targeting Accuracy 5 Recoil Reduction 2 Item Schematics ----------------- None Robot Schematics ------------------ None Fabricated ------------ Nothing Alien Tech Used ----------------- None Achievements -------------- None Challenges ------------ None Game ------ Seed PointyCoreMultirail Manual? 0 Play Time 00:37:27 Cumulative 4.8 hours Start 2024.07.28 @ 10:05:28 End 2024.07.28 @ 17:47:10 Sessions 3 Manual Loads 0 Difficulty Rogue Special Mode None Game No. 5 Rogue 1 Adventurer 4 Explorer 0 Win Type - Total 0 Types 0/0/0/0/0/0/0/0/0 Lore% 1 Gallery% 11 Achievement% 9 Wizard Run 0 Options --------- Layout 1 ASCII 0 Keyboard 0 Movement Mouse Keybinds 0 Fullscreen 1 Font 24/Smallcaps Map View 50x35 Zoom Use 8% Tactical HUD 1 Map Filters NONE Filters NONE Steam 1 RUN: cab48bea-7c10-47f3-8d98-a88a95257d0d